Cogmind - Beta 16 @@@ ROGUE MODE // 2026.01.11 @ 04:18:52 Player: AngelSpirit Result: Destroyed by Autobeam Turret with Autobeam Performance ------------- Evolutions (0) 0 Regions Visited (3) 600 Robots Destroyed (38) 190 Value Destroyed (829) 829 Prototype IDs (0) 0 Alien Tech Used (0) 0 Bonus (0) 0 TOTAL SCORE: 1619 Bonus ------- None Cogmind --------- Core Integrity 0/250 Matter 162/300 Energy 160/160 System Corruption 1% Temperature Cool (24) Movement Rolling (155) Ox5 Location -10/Subcaves Parts ------- > --- POWER (1) -------- Light Nuclear Core > --- PROPULSION (2) --- Makeshift Leg Wheel > --- UTILITY (2) ------ High-capacity Storage Unit Sensor Array > --- WEAPON (2) ------- Beamcaster Rocket Launcher > --- INVENTORY (20) --- Light Angular Momentum Engine Wheel Wheel Wheel Wheel Subdweller Monowheel Improved Heat Sink High-capacity Matter Pod (200) Machine Analyzer Scrap Shield Beamcaster Subdweller Machine Gun Subdweller Machine Gun Grenade Launcher Datajack Hammer Peak State ------------ > --- POWER ------------ Light Nuclear Core > --- PROPULSION ------- Carbon-fiber Leg Makeshift Leg > --- UTILITY ---------- Improved Heat Sink High-capacity Storage Unit > --- WEAPON ----------- Beamcaster Beamcaster > --- INVENTORY -------- Light Nuclear Core Light Angular Momentum Engine Wheel Wheel Wheel Wheel Wheel High-capacity Matter Pod Machine Analyzer Sensor Array Subdweller Machine Gun Grenade Launcher Rocket Launcher Datajack Hammer [Rating: 26] Favorites ----------- Power Light Nuclear Core Engine Ion Engine Power Core Light Nuclear Core Propulsion Wheel Leg Makeshift Leg Wheel Wheel Utility High-capacity Storage Unit Device Sensor Array Storage High-capacity Storage Unit Weapon Beamcaster Energy Gun Beamcaster Energy Cannon Beam Cannon Ballistic Gun Light Assault Rifle Launcher Rocket Launcher Impact Weapon Hammer Build | -11 -10 -10 -10 ------- Run | Yrd Mat Min Sub Slots Evolved . | . . . . Power . | . . . . Propulsion . | . . . . Utility . | . . . . Weapon . | . . . . Parts Attached 31 | 7 9 7 8 Power 5 | 1 2 1 1 Engine 2 | 1 1 . . Core 3 | . 1 1 1 Reactor . | . . . . Propulsion 9 | 2 2 2 3 Treads . | . . . . Leg 2 | . . . 2 Wheel 7 | 2 2 2 1 Hover . | . . . . Flight . | . . . . Utility 5 | 2 1 2 . Device 3 | 1 . 2 . Storage 2 | 1 1 . . Processor . | . . . . Hackware . | . . . . Protection . | . . . . Artifact . | . . . . Weapon 12 | 2 4 2 4 Energy Gun 3 | . 1 . 2 Energy Cannon 2 | . 1 1 . Ballistic Gun 3 | 2 1 . . Ballistic Cannon . | . . . . Launcher 3 | . 1 1 1 Special Weapon . | . . . . Impact Weapon 1 | . . . 1 Slashing Weapon . | . . . . Piercing Weapon . | . . . . Special Melee Weapon . | . . . . Unidentified Prototypes . | . . . . Parts Lost 6 | . 3 1 2 Power 3 | . 2 . 1 Propulsion 1 | . . . 1 Utility 1 | . . 1 . Weapon 1 | . 1 . . Highest Loss Streak 2 | . 2 1 1 To Critical Strikes . | . . . . Average Backups 13 | 1 9 15 15 Power 1 | . 1 2 1 Propulsion 3 | . 2 3 4 Utility 2 | . 1 3 3 Weapon 4 | . 3 5 4 Tool/Special . | . . . . Unused Backups 13 | . . 3 10 Power 3 | . . 2 1 Propulsion 3 | . . . 3 Utility 4 | . . 1 3 Weapon 2 | . . . 2 Tool/Special 1 | . . . 1 Average Slot Usage (%) 99 | . 99 100 99 Engine 2 | . 7 1 . Core 11 | . 6 12 14 Leg 10 | . . . 23 Wheel 16 | . 27 28 3 Device 13 | . 13 14 14 Storage 14 | . 14 14 14 Energy Gun 12 | . 1 . 25 Energy Cannon 9 | . 9 26 1 Ballistic Gun 5 | . 17 1 . Peak Build Rating 26 | 7 10 13 26 Average Rating 15 | 5 8 11 23 On Entrance 6 | . 7 8 12 Avg Prop Armor Cover (%) 9 | . . . 9 Naked Turns . | . . . . Heaviest Build 56 | 12 50 52 56 Greatest Support 35 | 32 32 20 35 Greatest Overweight (x) 5 | 1 3 2 5 Average Overweight (x) 1 | . 1 2 2 Largest Inventory Capacity 20 | 8 20 20 20 Average Capacity 18 | 7 16 20 20 Most Carried 19 | 3 16 16 19 Average Carried 13 | 1 9 15 15 Final Capacity 20 | 8 20 20 20 Final Carried 17 | 3 15 15 17 Class Distribution -------------------- 55% | Scavenger-Mutant 44% | Mutant Dominant Class ---------------- Mutant | -10/Materials Mutant | -10/Mines Scavenger-Mutant | -10/Subcaves Resources | -11 -10 -10 -10 ----------- Run | Yrd Mat Min Sub Matter Collected 852 | 242 282 174 154 Remotely . | . . . . Salvage Created 941 | 20 481 176 264 Parts 67 | 5 31 16 15 Haulers Intercepted 1 | . 1 . . Recyclers Shooed 4 | . 3 1 . Parts Field Recycled . | . . . . Retrieved Matter . | . . . . Parts Self-Destructed 6 | . . . 6 Prevented . | . . . . Parts Restored . | . . . . Kills | -11 -10 -10 -10 ------- Run | Yrd Mat Min Sub Combat Hostiles Destroyed 28 | . 8 11 9 Guns 5 | . 3 . 2 Cannons 12 | . 3 5 4 AOE 10 | . 1 6 3 Classes Destroyed 9 | 1 6 1 1 Worker 3 | . 3 . . Builder 1 | . 1 . . Tunneler 2 | 1 . 1 . Hauler 1 | . 1 . . Mechanic 1 | . 1 . . Watcher 2 | . 2 . . Swarmer 12 | . . 9 3 Grunt 12 | . 8 2 2 Subdweller 4 | . . . 4 Best Kill Streak 4 | 1 3 4 3 Combat Bots Only 3 | . 2 3 3 Max Kills in Single Turn 3 | 1 2 3 1 Gunslinging . | . . . . Exploded 3 | . 1 3 1 Melee . | . . . . Uniques/NPCs Destroyed . | . . . . Combat | -11 -10 -10 -10 -------- Run | Yrd Mat Min Sub Hostile Shots Fired 92 | . 44 21 27 Missed 18 | . 8 3 7 Hits 74 | . 36 18 20 Projectile 74 | . 36 18 20 Damage Taken 1133 | . 526 183 424 Core 254 | . 122 64 68 Absorbed by Shields . | . . . . Core Remaining (%) 100 | 100 . . . Volleys Fired 106 | 1 70 15 20 Largest 2 | 2 2 2 2 Hottest 150 | 40 85 120 150 Shots Fired 200 | 2 138 26 34 Gun 129 | 2 110 3 14 Cannon 57 | . 26 19 12 Launcher 14 | . 2 4 8 Special . | . . . . Kinetic 103 | 2 98 3 . Thermal 83 | . 38 19 26 Explosive 14 | . 2 4 8 Electromagnetic . | . . . . Robot Hit Streak 15 | 1 6 5 15 Robot Miss Streak 7 | 1 7 4 3 Penetration Max . | . . . . Secondary Targets . | . . . . Shots Hit Robots 112 | 1 77 13 21 Core Hits 56 | 1 30 12 13 Critical Kills 1 | . 1 . . Critical Parts Destroyed . | . . . . Critical Strikes 4 | . 2 . 2 Burn 3 | . 1 . 2 Meltdown 1 | . 1 . . Melee Attacks 6 | . . . 6 Impact 6 | . . . 6 Slashing . | . . . . Piercing . | . . . . Sneak Attacks . | . . . . Combat Hostiles . | . . . . Follow-up Attacks . | . . . . Damage Inflicted 2552 | 10 1189 594 759 Guns 822 | 10 594 6 212 Cannons 673 | . 290 185 198 Explosions 1057 | . 305 403 349 Melee . | . . . . Ramming . | . . . . Kinetic 517 | 10 501 6 . Thermal 1224 | . 629 185 410 Explosive 811 | . 59 403 349 Electromagnetic . | . . . . Impact . | . . . . Slashing . | . . . . Piercing . | . . . . Highest Corruption 1 | . 1 1 1 Average Corruption 1 | . 1 1 1 Corruption Purged . | . . . . Corruption Blocked . | . . . . Effects 19 | . 3 6 10 Message Errors 6 | . 2 2 2 Matter Fused 3 | . . . 3 Heat Flow Errors 3 | . . 3 . Energy Discharges 2 | . . 1 1 Data Loss (minor) 3 | . 1 . 2 Misfires 2 | . . . 2 Overload Shots . | . . . . Overflow Damage 59 | . 22 14 23 Projectiles 3 | . 3 . . Explosions 56 | . 19 14 23 Melee . | . . . . Knockbacks . | . . . . Impact . | . . . . Kinetic . | . . . . Secondary . | . . . . Self-Inflicted Damage 159 | . 90 34 35 Shots 6 | . 2 2 2 Rammed . | . . . . Targets Rammed . | . . . . Kicked . | . . . . Crushed . | . . . . Highest Temperature 196 | . 196 193 7 Average Temperature 49 | . 49 51 5 Received Heat Transfer 315 | . 237 18 60 Siege Activations . | . . . . Martial Activations . | . . . . Shielding Activations . | . . . . Robots Disrupted . | . . . . Combat Hostiles . | . . . . Robots Corrupted . | . . . . Combat Hostiles . | . . . . Parts Fried . | . . . . Impact Corruptions . | . . . . Robots Melted 1 | . 1 . . Combat Hostiles 1 | . 1 . . Parts Melted 6 | . 2 1 3 Heat Transferred 2383 | . 1088 370 925 Parts Sabotaged . | . . . . Parts Stolen . | . . . . Parts Stripped . | . . . . Power Chain Reactions . | . . . . Alert | -11 -10 -10 -10 ------- Run | Yrd Mat Min Sub Maximum Alert Level . | . . . . Low Security (%) 100 | 100 100 100 . Level 1 . | . . . . Level 2 . | . . . . Level 3 . | . . . . Level 4 . | . . . . Level 5 . | . . . . High Security . | . . . . Max Security . | . . . . Peak Influence 138 | 5 120 138 . Initial 16 | . . 16 . Average 43 | . 39 52 . Influence Increases 977 | 5 434 320 218 Destroy 0b10 Robot/C 480 | . 160 220 100 Destroy 0b10 Robot/NC 50 | 5 40 5 . Destroy Leader 96 | . 46 40 10 Allied During Kill 3 | . . . 3 Successful Hack 27 | . 15 12 . Disable Machine 30 | . 30 . . Destroy Structure 51 | . 23 28 . Partial Spotted 15 | . 15 . . Lose Combat Pursuer 225 | . 105 15 105 Influence Decreases 828 | 5 392 362 69 Entered New Map 26 | . . 26 . Time Decay 742 | 5 362 326 49 Lost Part 40 | . 30 10 . Lost Ally 20 | . . . 20 Squads Dispatched 2 | . 1 1 . Investigation 1 | . . 1 . Extermination . | . . . . Reinforcement 1 | . 1 . . Assault . | . . . . Garrison . | . . . . Intercept . | . . . . Searches Triggered . | . . . . Construction Impeded . | . . . . Haulers Reinforced . | . . . . Active Scanning Responses . | . . . . Cargo Convoy Interrupts . | . . . . Stealth | -11 -10 -10 -10 --------- Run | Yrd Mat Min Sub Distress Signals 2 | . 2 . . Communications Jammed . | . . . . Distress Signals . | . . . . Times Spotted 51 | . 25 13 13 Peak Tracking Total 6 | . 5 3 6 Tactical Retreats 6 | . 3 1 2 Traps | -11 -10 -10 -10 ------- Run | Yrd Mat Min Sub Traps Triggered 4 | . 2 . 2 Indirectly . | . . . . Trap Hack Attempts . | . . . . Triggered . | . . . . Disarmed . | . . . . Reprogrammed . | . . . . Reused . | . . . . Traps Extracted . | . . . . Installed . | . . . . Triggered . | . . . . Machines | -11 -10 -10 -10 ---------- Run | Yrd Mat Min Sub Machines Disabled 4 | . 2 . 2 Max in Single Turn 2 | . 2 . 2 Machines Repaired . | . . . . Machines Dismantled . | . . . . Machines Sabotaged . | . . . . Overloaded Fab Kills . | . . . . Hacking | -11 -10 -10 -10 --------- Run | Yrd Mat Min Sub Machines Accessed 9 | . 6 2 1 Terminals 7 | . 6 1 . Fabricators . | . . . . Repair Stations . | . . . . Recycling Units . | . . . . Scanalyzers . | . . . . Garrison Access . | . . . . Total Hacks 38 | . 26 7 5 Successful 22 | . 13 4 5 Failed 15 | . 12 3 . Catastrophic . | . . . . Database Lockouts 1 | . 1 . . Manual 24 | . 19 5 . Terminals 32 | . 26 6 . Fabricators . | . . . . Repair Stations . | . . . . Recycling Units . | . . . . Scanalyzers . | . . . . Garrison Access . | . . . . Terminal Hacks 13 | . 4 4 5 Record 6 | . 1 . 5 Robot Schematic 1 | . . 1 . Robot Analysis 2 | . 2 . . Open Door 1 | . . 1 . Locate Traps 1 | . 1 . . Dispatch Records 1 | . . 1 . Zone Layout 1 | . . 1 . Fabricator Hacks . | . . . . Repair Station Hacks . | . . . . Recycling Unit Hacks . | . . . . Scanalyzer . | . . . . Garrison Access Hacks . | . . . . Unauthorized Hacks 9 | . 9 . . Terminals 9 | . 9 . . Botnet 2 | . 2 . . Operators 1 | . 1 . . Skim 6 | . 6 . . Fabricators . | . . . . Repair Stations . | . . . . Recycling Units . | . . . . Scanalyzers . | . . . . Garrison Access . | . . . . Data Cores Recovered . | . . . . Used . | . . . . Hacking Detections 7 | . 6 1 . Full Trace Events . | . . . . Feedback Events . | . . . . Feedback Blocked . | . . . . Robot Schematics Acquired 1 | . . 1 . Robots Built . | . . . . Authchips . | . . . . Time . | . . . . Total Robot Build Rating . | . . . . Part Schematics Acquired . | . . . . Parts Built . | . . . . Authchips . | . . . . Time . | . . . . Total Part Build Rating . | . . . . Part Studies Acquired . | . . . . Parts Repaired . | . . . . Time . | . . . . Parts Recycled . | . . . . Recycled Matter . | . . . . Retrieved Matter . | . . . . Retrieved Components . | . . . . Parts Scanalyzed . | . . . . Part Schematics Acquired . | . . . . Parts Damaged . | . . . . Bothacking | -11 -10 -10 -10 ------------ Run | Yrd Mat Min Sub Used RIF Installer . | . . . . Robots Hacked . | . . . . Non-combat . | . . . . Combat . | . . . . Robot Hacks Applied . | . . . . Relay Couplers Released . | . . . . Fabnet Peak Effective % . | . . . . Robots Rewired . | . . . . Allies Hacked . | . . . . Hacks Repelled . | . . . . Allies | -11 -10 -10 -10 -------- Run | Yrd Mat Min Sub Total Allies 3 | . . 3 . Largest Group 3 | . . 3 3 Highest-Rated Group 73 | . . 73 73 Highest-Rated Ally 31 | . . 31 31 Total Orders . | . . . . Ally Attacks 5 | . . . 5 Total Damage 86 | . . . 86 Kills 1 | . . . 1 Allies Corrupted . | . . . . Allies Melted . | . . . . Intel | -11 -10 -10 -10 ------- Run | Yrd Mat Min Sub Active Infowar (turns) 3283 | 6 1059 714 1504 Sensors 1942 | . . 438 1504 Seismic 1341 | 6 1059 276 . Robot Analysis Total 2 | . 2 . . Derelict Logs Recovered 2 | . . 2 . Drone Launches . | . . . . Drone Recoveries . | . . . . Exploration | -11 -10 -10 -10 ------------- Run | Yrd Mat Min Sub Turns Passed 3512 | 62 1066 805 1579 Spaces Moved 1562 | 34 576 619 333 Core 3 | 3 . . . Treads . | . . . . Legs 179 | . . . 179 Wheels 1380 | 31 576 619 154 Hover . | . . . . Flight . | . . . . Fastest Speed 50 | 50 100 110 110 Average Speed 123 | 98 108 110 176 Slowest Speed 200 | 100 145 110 200 Overloaded Moves . | . . . . Propulsion Burnouts . | . . . . Robots Hopped . | . . . . Potential Cave-ins . | . . . . Cave-ins Triggered . | . . . . Exploration Rate (%) 50 | 3 82 94 23 Regions Visited 3 Branch Regions 2 Pre-discovered Areas 1 | . . 1 . Known Exits Taken 1 | . . 1 . Unknown Exits Taken 2 | 1 1 . . Scrap Searched 1 | . . 1 . Spaces Dug 42 | . . . 42 Terrain Destroyed 128 | . 25 31 72 Melee 1 | . . . 1 Projectile . | . . . . AOE 127 | . 25 31 71 Terrain Rammed . | . . . . Walls Destroyed . | . . . . Machines Disabled . | . . . . Actions | -11 -10 -10 -10 --------- Run | Yrd Mat Min Sub Total 2943 | 57 894 715 1277 Wait 1172 | 13 214 57 888 Move 1559 | 33 575 618 333 Hop . | . . . . Pick Up 33 | 3 17 6 7 Fast Attach 12 | 7 4 1 . Attach 7 | . 2 1 4 Detach . | . . . . Swap 33 | . 8 10 15 Drop 15 | . 4 7 4 Fire 106 | 1 70 15 20 Melee 6 | . . . 6 Ram . | . . . . Kick . | . . . . Crush . | . . . . Escape Stasis . | . . . . Rewire . | . . . . Trap . | . . . . Miscellaneous . | . . . . Route ------- -11/Scrapyard -10/Materials (discovered 5 exits: *Mat x3 / *Min / Sub) -10/Mines (discovered 3 exits: *Mat x2 / *Sub) -10/Subcaves (discovered 2 exits: [*Mat] / [*Rec]) History --------- Turn | Location | Event 17 | -11/Scrapyard | Discovered new exit (range 15) 63 | -11/Scrapyard | Entered Materials 123 | -10/Materials | Discovered new exit (range 11) 324 | -10/Materials | Build established: Mutant 446 | -10/Materials | Central database locked down 497 | -10/Materials | Discovered new exit (range 7) 887 | -10/Materials | Discovered new exit (range 3) 988 | -10/Materials | Loaded intel: 2 recycling unit locations 1027 | -10/Materials | Learned Storage garrison access intel 1056 | -10/Materials | Learned Storage terminal intel 1078 | -10/Materials | Learned Storage emergency access door positions 1092 | -10/Materials | Identified exit to Subcaves 1092 | -10/Materials | Identified exit to Materials 1118 | -10/Materials | Loaded intel: 7 terminal locations 1129 | -10/Materials | Entered Mines 1133 | -10/Mines | Met a Derelict shopkeep closing up shop 1157 | -10/Mines | Learned location of Storage (-7) 1178 | -10/Mines | Core integrity fell below 50% 1249 | -10/Mines | Discovered exit to Materials (range 7) 1400 | -10/Mines | Discovered exit to Subcaves (range 8) 1496 | -10/Mines | Build established: Scavenger-Mutant 1572 | -10/Mines | Learned Materials stockpile data 1616 | -10/Mines | Received a Rocket Launcher from a helpful Derelict 1651 | -10/Mines | Received a Mining Laser from a helpful Derelict 1699 | -10/Mines | Discovered exit to Materials (range 15) 1805 | -10/Mines | Build established: Mutant 1934 | -10/Mines | Entered Subcaves 1934 | -10/Subcaves | Accompanied by 3 allies 1939 | -10/Subcaves | Led the pair of lost Derelicts to an unsafe place 2012 | -10/Subcaves | Core integrity fell below 20% 2177 | -10/Subcaves | Discovered new exit (range 7) 2187 | -10/Subcaves | Visited Clippyterm 2193 | -10/Subcaves | Learned Research security intel 2193 | -10/Subcaves | Learned Research machine intel 2299 | -10/Subcaves | Build established: Scavenger-Mutant 3512 | -10/Subcaves | Discovered new exit (range 14) 3513 | -10/Subcaves | Destroyed by Autobeam Turret with Autobeam Last Messages --------------- 03281_ Acquired Sub. Machine Gun. 03285_ Acquired 10 matter. 03290_ Subatomizers dissect the Disposable Heat Sink. 03296_ Acquired Scrap Shield. 03301_ Subatomizers dissect the Disposable Heat Sink. 03407_ The unstable cave ceiling collapses. 03415_ Subatomizers dissect the Disposable Heat Sink, destroying it. 03424_ S-10 Pest springs to life. 03429_ S-10 Pest destroyed. 03431_ Destroyed Flight Unit. 03431_ Destroyed Unknown Ballistic Gun. 03432_ The unstable cave ceiling collapses. 03433_ Unknown Ballistic Gun fries itself beyond repair. 03434_ The unstable cave ceiling collapses. 03512_ Machine disabled. 03512_ EXIT=FOUND Map ----- +----------------------------------------------------+ | ?????????????????????????????????????????????????? | | ?????????????????????????????????????????????????? | | ?????????????????????????????????????????????????? | | ?????????????????????????????????????????????????? | | ?????????????????????????????????????????????????? | | ?????????????????????????????????????????????????? | | ?????????????????????????????????????????????????? | | ?????????????????????????????????????????????????? | | ?????????#???####????????????????????????????????? | | ????????#%??" """???????????????????????????????? | | ???????? ### "???????????????????????????????? | | ???????? # "???????????????????????????????? | | ??????## ""#??????????????????????????????? | | ????### %<##?????###????????????????????? | | ????# % t #???## #????????????????????? | | ##### #??# ##????????????????????? | | ## ## # ### ##????????????????????? | | " ? # #????????????????????? | | # # #??? # ##????????????????????? | | ## ## #???## #?????????????????????? | | #### #???# ##????????????????????? | | "#??# ##???# #????????%#??????????? | | "#??## #??## ### ## #??????????? | | ####### ##?# " # ??????????? | | # ## ### ### #### # # ???????????? | | &%& %/ ##??# @ #?????????????????? | | !# # # ### #???# ### ##?????????????????? | | ########?## ##???#####??##??????????????????? | | ??????????########???????????????????????????????? | | ?????????????????????????????????????????????????? | | ?????????????????????????????????????????????????? | | ?????????????????????????????????????????????????? | | ?????????????????????????????????????????????????? | | ?????????????????????????????????????????????????? | | ?????????????????????????????????????????????????? | | ?????????????????????????????????????????????????? | | ?????????????????????????????????????????????????? | | ?????????????????????????????????????????????????? | | ?????????????????????????????????????????????????? | | ?????????????????????????????????????????????????? | | ?????????????????????????????????????????????????? | | ?????????????????????????????????????????????????? | | ?????????????????????????????????????????????????? | | | | | | | | | | | | | | | +----------------------------------------------------+ Best States ------------- Heat Dissipation 39 Energy Generation 14 Energy Capacity 250 Matter Stores 300 Matter Capacity 300 Sight Range 16 Robot Scan Range 14 Terrain Scan Density 10 Evasion (%) 40 Item Schematics ----------------- None Robot Schematics ------------------ M-13 Machinist | -10/Mines | Hacked Fabricated ------------ Nothing Repaired ---------- Nothing Studied --------- None Alien Tech Used ----------------- None Achievements -------------- None Challenges ------------ None Game ------ Seed EnergySpliceCanceller Manual? 0 Play Time 00:23:32 Cumulative 405.2 hours Start 2026.01.11 @ 03:55:11 End 2026.01.11 @ 04:18:52 Sessions 1 Manual Loads 0 Difficulty Rogue Special Mode None Game No. 146 Rogue 146 Adventurer 0 Explorer 0 Win Type - Total 10 Types 5/0/1/1/0/0/0/1/0/2 Lore% 85 Gallery% 81 Achievement% 71 Wizard Run 0 Options --------- Layout 1 ASCII 0 Keyboard 0 Movement Mouse Keybinds 0 Fullscreen 2 Font 32/SmallcapsGlow Map View 50x35 Zoom Use 0% Tactical HUD 1 Map Filters NONE Filters NONE Steam 1 RUN: 08719dc8-a20c-4995-b15b-4b83b3fbfdb0